fUST/lending_fUST_20240616
["ID","MTS","AMOUNT","RATE_DAILY","PERIOD"]
[329598716,1718489444909,-980.62,0.00016712,2]
[329598717,1718489444964,-500.0,0.00016712,2]
[329598718,1718489444982,-500.0,0.00016712,2]
[329598719,1718489445012,-500.0,0.00016712,2]
[329598720,1718489445026,-500.0,0.00016712,2]
[329598721,1718489445052,-500.0,0.00016712,2]
[329598722,1718489445065,-500.0,0.00016712,2]
[329598723,1718489445100,-500.0,0.00016712,2]
[329598724,1718489445118,-500.0,0.00016712,2]
[329598725,1718489445140,-500.0,0.00016712,2]
[329598726,1718489445153,-539.87519389,0.00016712,2]
[329598727,1718489445164,-363.72337556,0.00016712,2]
[329598728,1718489445175,-2066.3,0.00016712,2]
[329598729,1718489445202,-500.0,0.00016712,2]
[329598730,1718489445213,-2442.4,0.00016712,2]
[329598731,1718489445233,-500.0,0.00016712,2]
[329598732,1718489445248,-500.0,0.00016712,2]
[329598733,1718489445288,-1330.86,0.00016712,2]
[329598734,1718489445319,-500.0,0.00016712,2]
[329598735,1718489445330,-500.0,0.00016712,2]
[329598736,1718489445364,-758.34,0.00016712,2]
[329598737,1718489445376,-2975.14,0.00016712,2]
[329598738,1718489445395,-500.0,0.00016712,2]
[329598739,1718489445413,-500.0,0.00016712,2]
[329598740,1718489445440,-1217.32,0.00016712,2]
[329598741,1718489445453,-1055.63,0.00016712,2]
[329598742,1718489445485,-247.3,0.00016722,2]
[329598743,1718489445500,-247.3,0.00016864,2]
[329598744,1718489445517,-44137.53557619,0.00016986,15]
[329598745,1718489445531,-500.0,0.00016986,2]
[329598746,1718489445560,-500.0,0.00016986,2]
[329598747,1718489445585,-934.79,0.00016986,2]
[329598748,1718489445599,-500.0,0.00016986,2]
[329598749,1718489445637,-500.0,0.00016986,2]
[329598750,1718489445651,-500.0,0.00016986,2]
[329598751,1718489445680,-500.0,0.00016986,2]
[329598752,1718489445707,-500.0,0.00016986,2]
[329598753,1718489445744,-500.0,0.00016986,2]
[329598754,1718489445815,-358.0998787,0.00016986,2]
[329598755,1718489445839,-500.0,0.00016986,2]
[329598756,1718489445874,-500.0,0.00016986,2]
[329598757,1718489445930,-1502.89,0.00016986,2]
[329598758,1718489445951,-500.0,0.00016986,2]
[329598759,1718489445972,-1804.86,0.00016986,2]
[329598760,1718489445988,-500.0,0.00016986,2]
[329598761,1718489446003,-2102.42,0.00016986,2]
[329598762,1718489446016,-500.0,0.00016986,2]
[329598763,1718489446054,-500.0,0.00016986,2]
[329598764,1718489446085,-533.39,0.00016986,2]
[329598765,1718489446106,-500.0,0.00016986,2]
[329598766,1718489446146,-500.0,0.00016986,2]
[329598767,1718489446159,-500.0,0.00016986,2]
[329598768,1718489446181,-500.0,0.00016986,2]
[329598769,1718489446199,-980.62,0.00016986,2]
[329598770,1718489446220,-500.0,0.00016986,2]
[329598771,1718489446231,-500.0,0.00016986,2]
[329598772,1718489446262,-637.07,0.00016986,2]
[329598773,1718489446286,-500.0,0.00016986,2]
[329598774,1718489446300,-500.0,0.00016986,2]
[329598775,1718489446316,-2066.3,0.00016986,2]
[329598776,1718489446344,-2442.4,0.00016986,2]
[329598777,1718489446356,-500.0,0.00016986,2]
[329598778,1718489446375,-1330.86,0.00016986,2]
[329598779,1718489446390,-500.0,0.00016986,2]
[329598780,1718489446416,-500.0,0.00016986,2]
[329598781,1718489446441,-500.0,0.00016986,2]
[329598782,1718489446468,-758.34,0.00016986,2]
[329598783,1718489446479,-2975.14,0.00016986,2]
[329598784,1718489446489,-500.0,0.00016986,2]
[329598785,1718489446502,-319.4111843,0.00016986,2]
[329598786,1718489446515,-1217.32,0.00016986,2]
[329598787,1718489446532,-1055.63,0.00016986,2]
[329598788,1718489446564,-5888.08844758,0.00017,2]
[329598789,1718489446593,-247.3,0.00017006,2]
[329598790,1718489446604,-620.00095439,0.00017061,2]
[329598791,1718489446622,-247.3,0.00017148,2]
[329598792,1718489446635,-153.0,0.00017151,2]
[329598793,1718489446648,-500.0,0.0001726,2]
[329598794,1718489446658,-500.0,0.0001726,2]
[329598795,1718489446684,-934.79,0.0001726,2]
[329598796,1718489446695,-500.0,0.0001726,2]
[329598797,1718489446736,-500.0,0.0001726,2]
[329598798,1718489446749,-500.0,0.0001726,2]
[329598799,1718489446759,-500.0,0.0001726,2]
[329598800,1718489446771,-203.31998847,0.0001726,2]
[329598812,1718489450470,-236.94496739,0.00016437,2]
[329598813,1718489450482,-482.84503261,0.00016438,2]
[329598838,1718489457693,-380.00869995,0.000149,2]
[329598843,1718489458032,-2137.57954664,0.000149,2]
[329598844,1718489458045,-697.99496739,0.00016438,2]
[329598845,1718489458058,-1579.25,0.00016438,2]
[329598846,1718489458070,-1180.84,0.00016712,2]
[329598847,1718489458082,-1579.25,0.00016712,2]
[329598848,1718489458108,-1180.84,0.00016986,2]
[329598849,1718489458145,-1579.25,0.00016986,2]
[329598850,1718489458164,-296.68001153,0.0001726,2]
[329598851,1718489458175,-500.0,0.0001726,2]
[329598852,1718489458188,-1502.89,0.0001726,2]
[329598853,1718489458218,-2102.42,0.0001726,2]
[329598854,1718489458243,-533.39,0.0001726,2]
[329598855,1718489458280,-500.0,0.0001726,2]
[329598856,1718489458301,-500.0,0.0001726,2]
[329598857,1718489458312,-980.62,0.0001726,2]
[329598858,1718489458322,-500.0,0.0001726,2]
[329598859,1718489458348,-500.0,0.0001726,2]
[329598860,1718489458360,-500.0,0.0001726,2]
[329598861,1718489458387,-2066.3,0.0001726,2]
[329598862,1718489458398,-1824.0368671,0.0001726,2]
[329598863,1718489460973,-500.0,0.00016438,2]
[329598864,1718489461037,-1252.41,0.00016438,2]
[329598865,1718489461055,-500.0,0.00016712,2]
[329598866,1718489461068,-1252.41,0.00016712,2]
[329598867,1718489461086,-1788.45177485,0.00016985,2]
[329598868,1718489461112,-500.0,0.00016986,2]
[329598869,1718489461185,-1252.41,0.00016986,2]
[329598870,1718489461209,-4147.16695397,0.00017259,2]
[329598872,1718489822981,331.93,0.0001,10]
[329598916,1718490634709,-1302.0,0.0001,2]
[329599018,1718490641253,-580.68582922,0.0001,2]
[329599198,1718490649910,-724.93253984,0.0001,2]
[329599201,1718490650573,-5040.449459,0.0001,2]
[329599202,1718490650587,-5945.80022843,0.0001,2]
[329599203,1718490856611,2200.0,0.00025,60]
[329599288,1718491841098,-1494.52130968,0.00010853,2]
[329599398,1718491849219,-5237.66735818,0.00010229,2]
[329599399,1718491849237,-5237.66735818,0.0001045,2]
[329599400,1718491849259,-5237.66735818,0.00010704,2]
[329599401,1718491849285,-5237.66735818,0.00011184,2]
[329599402,1718491849304,-5237.66735818,0.00011328,2]
[329599403,1718491849316,-7139.30522009,0.00015088,2]
[329599404,1718492034860,3000.0,0.00023,30]
[329599407,1718492638619,3000.0,0.00023,30]
[329599489,1718493049948,-2145.3271,0.00014886,2]
[329599491,1718493050340,-1253.08271049,0.00014886,2]
[329599492,1718493050354,-1872.28031448,0.00014886,2]
[329599494,1718493050403,-23167.35229507,0.00015028,2]
[329599495,1718493050424,-16771.8908751,0.00015038,2]
[329599497,1718493050460,-174.5625,0.00016164,2]
[329599498,1718493050473,-638.5628782,0.00016432,2]
[329599499,1718493050534,-500.0,0.00016438,2]
[329599500,1718493050552,-500.0,0.00016438,2]
[329599501,1718493050611,-500.0,0.00016438,2]
[329599502,1718493050644,-500.0,0.00016438,2]
[329599503,1718493050655,-500.0,0.00016438,2]
[329599504,1718493050692,-500.0,0.00016438,2]
[329599505,1718493050724,-500.0,0.00016438,2]
[329599506,1718493050734,-176.11348461,0.00016438,2]
[329599507,1718493050745,-529.80356383,0.00016438,2]
[329599508,1718493050759,-500.0,0.00016438,2]
[329599509,1718493050771,-500.0,0.00016438,2]
[329599510,1718493050781,-500.0,0.00016438,2]
[329599511,1718493050791,-509.59997404,0.00016438,2]
[329599512,1718493050801,-500.0,0.00016438,2]
[329599513,1718493050848,-502.36211925,0.00016438,2]
[329599514,1718493050859,-500.0,0.00016438,2]
[329599515,1718493050878,-516.02195612,0.00016438,2]
[329599516,1718493050928,-500.0,0.00016438,2]
[329599517,1718493050960,-500.0,0.00016438,2]
[329599518,1718493051003,-500.0,0.00016438,2]
[329599519,1718493051033,-196.52294572,0.00016438,2]
[329599520,1718493051044,-500.0,0.00016438,2]
[329599521,1718493051084,-799.82,0.00016438,2]
[329599522,1718493051094,-500.0,0.00016438,2]
[329599523,1718493051129,-500.0,0.00016438,2]
[329599525,1718493051162,-175.53036192,0.00016438,2]
[329599526,1718493051185,-500.0,0.00016438,2]
[329599527,1718493051197,-500.0,0.00016438,2]
[329599528,1718493051208,-500.0,0.00016438,2]
[329599529,1718493051218,-500.0,0.00016438,2]
[329599530,1718493051229,-500.0,0.00016438,2]
[329599531,1718493051250,-500.0,0.00016438,2]
[329599532,1718493051269,-175.24448478,0.00016438,2]
[329599533,1718493051304,-500.0,0.00016438,2]
[329599534,1718493051323,-245.62621696,0.00016438,2]
[329599535,1718493051342,-534.03817674,0.00016438,2]
[329599536,1718493051360,-500.0,0.00016438,2]
[329599537,1718493051394,-587.62282857,0.00016438,2]
[329599538,1718493051415,-500.0,0.00016438,2]
[329599539,1718493051431,-500.0,0.00016438,2]
[329599540,1718493051446,-500.0,0.00016438,2]
[329599541,1718493051472,-500.0,0.00016438,2]
[329599542,1718493051482,-500.0,0.00016438,2]
[329599543,1718493051516,-500.0,0.00016438,2]
[329599544,1718493051527,-502.73516068,0.00016438,2]
[329599545,1718493051537,-154.87892401,0.00016438,2]
[329599546,1718493051549,-500.0,0.00016438,2]
[329599547,1718493051559,-500.0,0.00016438,2]
[329599548,1718493051570,-500.0,0.00016438,2]
[329599549,1718493051582,-500.0,0.00016438,2]
[329599550,1718493051595,-290.42217816,0.00016438,2]
[329599553,1718493240298,3000.0,0.00023,30]
[329599554,1718493837040,3000.0,0.00023,30]
[329599614,1718494235755,-456.91543891,9.999e-05,2]
[329599615,1718494235788,-1414.93750024,0.00015243,2]
[329599711,1718494241270,-3885.54680976,0.00015243,2]
[329599713,1718494241300,-255.524516,0.00015243,2]
[329599715,1718494241317,-190.834375,0.00016164,2]
[329599717,1718494241355,-620.00004772,0.00016167,2]
[329599718,1718494241377,-156.68087417,0.00016338,2]
[329599720,1718494241387,-5270.69012497,0.00016343,2]
[329599722,1718494241412,-169.424617,0.00016376,2]
[329599725,1718494241431,-194.815121,0.00016376,2]
[329599726,1718494241445,-169.503484,0.00016376,2]
[329599730,1718494241473,-153.0,0.000164,2]
[329599732,1718494241485,-153.0,0.000164,2]
[329599734,1718494241512,-153.0,0.000164,2]
[329599736,1718494241524,-153.0,0.000164,2]
[329599737,1718494241535,-153.0,0.000164,2]
[329599740,1718494241548,-246.09852012,0.00016436,2]
[329599742,1718494241587,-500.0,0.00016438,2]
[329599744,1718494241613,-500.0,0.00016438,2]
[329599745,1718494241635,-500.0,0.00016438,2]
[329599748,1718494241660,-500.0,0.00016438,2]
[329599750,1718494241702,-500.0,0.00016438,2]
[329599752,1718494241714,-500.0,0.00016438,2]
[329599754,1718494241743,-270.37422329,0.00016438,2]
[329599755,1718494241755,-500.0,0.00016438,2]
[329599757,1718494241767,-163.93138658,0.00016438,2]
[329599759,1718494241787,-500.0,0.00016438,2]
[329599761,1718494241804,-500.0,0.00016438,2]
[329599764,1718494241845,-787.33,0.00016438,2]
[329599766,1718494241860,-500.0,0.00016438,2]
[329599767,1718494241881,-151.0,0.00016438,2]
[329599769,1718494241893,-500.0,0.00016438,2]
[329599771,1718494241908,-500.0,0.00016438,2]
[329599773,1718494241930,-500.0,0.00016438,2]
[329599774,1718494241941,-500.0,0.00016438,2]
[329599776,1718494241955,-388.89224054,0.00016438,2]
[329599777,1718494241995,-503.01410505,0.00016438,2]
[329599778,1718494242027,-500.0,0.00016438,2]
[329599779,1718494242057,-500.0,0.00016438,2]
[329599780,1718494242071,-500.0,0.00016438,2]
[329599781,1718494242088,-500.0,0.00016438,2]
[329599782,1718494242102,-500.0,0.00016438,2]
[329599783,1718494242135,-176.06596008,0.00016438,2]
[329599784,1718494242148,-500.0,0.00016438,2]
[329599785,1718494242160,-344.53255992,0.00016438,2]
[329599786,1718494242196,-500.0,0.00016438,2]
[329599787,1718494242211,-500.0,0.00016438,2]
[329599788,1718494242224,-500.0,0.00016438,2]
[329599789,1718494242237,-500.0,0.00016438,2]
[329599790,1718494242259,-500.0,0.00016438,2]
[329599791,1718494242270,-500.0,0.00016438,2]
[329599792,1718494242286,-500.0,0.00016438,2]
[329599793,1718494242318,-500.0,0.00016438,2]
[329599794,1718494242335,-290.75746163,0.00016438,2]
[329599795,1718494242371,-209.24253837,0.00016438,2]
[329599796,1718494242402,-94.9379024,0.00016438,2]
[329599931,1718494246713,-405.0620976,0.00016438,2]
[329599933,1718494246773,-300.52238671,0.00016438,2]
[329599972,1718494248611,-163.50150577,0.00016438,2]
[329599974,1718494248629,-151.0,0.00016438,2]
[329599976,1718494248646,-500.0,0.00016438,2]
[329599978,1718494248661,-1008.734673,0.00016438,2]
[329599980,1718494248673,-398.40310171,0.00016438,2]
[329599982,1718494248708,-610.33157129,0.00016438,2]
[329599984,1718494248733,-1008.734673,0.00016438,2]
[329599986,1718494248751,-1008.734673,0.00016438,2]
[329599988,1718494248773,-1008.734673,0.00016438,2]
[329599990,1718494248785,-922.0364913,0.00016438,2]
[329599992,1718494248821,-86.6981817,0.00016438,2]
[329599994,1718494248834,-1008.734673,0.00016438,2]
[329599995,1718494248856,-1008.734673,0.00016438,2]
[329599997,1718494248888,-1008.734673,0.00016438,2]
[329600000,1718494248905,-1008.734673,0.00016438,2]
[329600001,1718494248930,-1008.734673,0.00016438,2]
[329600003,1718494248946,-1008.734673,0.00016438,2]
[329600005,1718494248962,-1008.734673,0.00016438,2]
[329600007,1718494248992,-1008.734673,0.00016438,2]
[329600009,1718494249008,-1008.734673,0.00016438,2]
[329600010,1718494249029,-1008.734673,0.00016438,2]
[329600012,1718494249041,-1008.734673,0.00016438,2]
[329600014,1718494249055,-1008.734673,0.00016438,2]
[329600016,1718494249090,-1008.734673,0.00016438,2]
[329600019,1718494249107,-1008.734675,0.00016438,2]
[329600022,1718494249123,-529.48129924,0.00016438,2]
[329600025,1718494249148,-500.0,0.00016438,2]
[329600027,1718494249161,-1003.87,0.00016438,2]
[329600029,1718494249173,-500.0,0.00016438,2]
[329600031,1718494249243,-500.0,0.00016438,2]
[329600034,1718494249256,-2330.38,0.00016438,2]
[329600036,1718494249267,-500.0,0.00016438,2]
[329600038,1718494249280,-240.14,0.00016438,2]
[329600041,1718494249313,-219.79,0.00016438,2]
[329600042,1718494249334,-500.0,0.00016438,2]
[329600044,1718494249359,-1154.0,0.00016438,2]
[329600046,1718494249395,-1888.67,0.00016438,2]
[329600049,1718494249431,-500.0,0.00016438,2]
[329600051,1718494249442,-500.0,0.00016438,2]
[329600053,1718494249459,-165.048204,0.00016438,2]
[329600055,1718494249470,-165.048204,0.00016438,2]
[329600057,1718494249484,-1514.44,0.00016438,2]
[329600059,1718494249508,-165.048204,0.00016438,2]
[329600061,1718494249522,-500.0,0.00016438,2]
[329600063,1718494249535,-165.048204,0.00016438,2]
[329600065,1718494249547,-165.048204,0.00016438,2]
[329600068,1718494249570,-165.048196,0.00016438,2]
[329600070,1718494249587,-500.0,0.00016438,2]
[329600071,1718494249599,-500.0,0.00016438,2]
[329600074,1718494249612,-500.0,0.00016438,2]
[329600076,1718494249639,-412.83488669,0.00016438,2]
[329600097,1718494250047,-187.37676428,0.00016438,2]
[329600098,1718494250064,-3253.75,0.00016438,2]
[329600100,1718494250076,-1302.31,0.00016438,2]
[329600102,1718494250093,-500.0,0.00016438,2]
[329600105,1718494250112,-500.0,0.00016438,2]
[329600107,1718494250126,-500.0,0.00016438,2]
[329600108,1718494250156,-500.0,0.00016438,2]
[329600110,1718494250170,-500.0,0.00016438,2]
[329600112,1718494250187,-500.0,0.00016438,2]
[329600114,1718494250220,-500.0,0.00016438,2]
[329600116,1718494250233,-500.0,0.00016438,2]
[329600118,1718494250260,-500.0,0.00016438,2]
[329600120,1718494250272,-850.22,0.00016438,2]
[329600122,1718494250299,-500.0,0.00016438,2]
[329600124,1718494250313,-500.0,0.00016438,2]
[329600127,1718494250340,-500.0,0.00016438,2]
[329600130,1718494250385,-500.0,0.00016438,2]
[329600132,1718494250405,-1000.0,0.00016438,2]
[329600133,1718494250436,-1000.0,0.00016438,2]
[329600136,1718494250459,-1000.0,0.00016438,2]
[329600138,1718494250473,-500.0,0.00016438,2]
[329600140,1718494250499,-1000.0,0.00016438,2]
[329600142,1718494250516,-1000.0,0.00016438,2]
[329600144,1718494250531,-151.0,0.00016438,2]
[329600146,1718494250543,-1000.0,0.00016438,2]
[329600148,1718494250554,-151.0,0.00016438,2]
[329600150,1718494250575,-1000.0,0.00016438,2]
[329600151,1718494250587,-151.0,0.00016438,2]
[329600153,1718494250598,-1000.0,0.00016438,2]
[329600155,1718494250620,-151.0,0.00016438,2]
[329600158,1718494250635,-1000.0,0.00016438,2]
[329600159,1718494250646,-151.0,0.00016438,2]
[329600161,1718494250672,-1000.0,0.00016438,2]
[329600163,1718494250688,-151.0,0.00016438,2]
[329600165,1718494250701,-1000.0,0.00016438,2]
[329600167,1718494250713,-151.0,0.00016438,2]
[329600169,1718494250724,-1000.0,0.00016438,2]
[329600171,1718494250739,-151.0,0.00016438,2]
[329600172,1718494250752,-151.0,0.00016438,2]
[329600173,1718494250766,-1000.0,0.00016438,2]
[329600174,1718494250777,-151.0,0.00016438,2]
[329600175,1718494250788,-1000.0,0.00016438,2]
[329600176,1718494250799,-151.0,0.00016438,2]
[329600177,1718494250811,-1000.0,0.00016438,2]
[329600178,1718494250824,-300.25983,0.00016438,2]
[329600179,1718494250852,-1000.0,0.00016438,2]
[329600180,1718494250863,-1000.0,0.00016438,2]
[329600181,1718494250874,-1000.0,0.00016438,2]
[329600182,1718494250889,-1000.0,0.00016438,2]
[329600183,1718494250903,-1000.0,0.00016438,2]
[329600184,1718494250916,-201.51642481,0.00016438,2]
[329600185,1718494250936,-742.73274109,0.00016438,2]
[329601914,1718494438106,3000.0,0.00023,30]
[329601920,1718495049748,3000.0,0.00023,30]
[329601964,1718495436050,-374.32964814,9.999e-05,2]
[329601966,1718495436084,-2553.48932326,9.999e-05,2]
[329601979,1718495440738,-958.48682581,9.999e-05,2]
[329601981,1718495441267,-9119.25919062,9.999e-05,2]
[329601982,1718495441285,-1544.13388645,9.999e-05,2]
[329601983,1718495441315,-36729.87953925,9.999e-05,2]
[329601984,1718495441344,-193.27998331,0.00010859,2]
[329601985,1718495441354,-159.54,0.00010959,2]
[329601986,1718495441367,-4947.2096657,0.00014655,2]
[329601987,1718495441383,-255.5245173,0.000147,2]
[329601988,1718495441435,-194.047926,0.00016164,2]
[329601989,1718495441472,-153.0,0.000162,2]
[329601990,1718495441496,-153.0,0.000162,2]
[329601991,1718495441525,-292.6897656,0.000162,2]
[329601992,1718495441542,-153.0,0.000162,2]
[329601993,1718495441569,-153.0,0.000162,2]
[329601994,1718495441581,-292.148541,0.000162,2]
[329601995,1718495441591,-154.457605,0.000162,2]
[329601996,1718495441602,-306.0,0.000162,2]
[329601997,1718495441632,-153.0,0.000162,2]
[329601998,1718495441642,-309.0634753,0.000162,2]
[329601999,1718495441674,-153.0,0.000162,2]
[329602000,1718495441693,-153.0,0.000162,2]
[329602001,1718495441723,-205.4705528,0.000162,2]
[329602002,1718495441756,-153.0,0.000162,2]
[329602003,1718495441788,-153.0,0.000162,2]
[329602004,1718495441799,-205.4705528,0.000162,2]
[329602005,1718495441811,-153.0,0.000162,2]
[329602006,1718495441822,-153.0,0.000162,2]
[329602007,1718495441833,-216.0581804,0.000162,2]
[329602008,1718495441857,-153.0,0.000162,2]
[329602009,1718495441887,-153.0,0.000162,2]
[329602010,1718495441898,-153.0,0.000162,2]
[329602011,1718495441918,-205.4705528,0.000162,2]
[329602012,1718495441934,-5270.69012497,0.00016391,2]
[329602013,1718495441949,-292.6897656,0.000164,2]
[329602014,1718495441959,-153.0,0.000164,2]
[329602015,1718495441992,-153.0,0.000164,2]
[329602016,1718495442016,-205.4705528,0.000164,2]
[329602017,1718495442028,-153.0,0.000164,2]
[329602018,1718495442068,-153.0,0.000164,2]
[329602019,1718495442101,-1581.95570728,0.00016432,2]
[329602020,1718495442112,-215.45514594,0.00016433,2]
[329602021,1718495442143,-1911.02618015,0.00016434,2]
[329602022,1718495442174,-945.74878612,0.00016434,2]
[329602023,1718495442187,-1780.04663089,0.00016434,2]
[329602024,1718495442210,-695.47179616,0.00016434,2]
[329602025,1718495442232,-241.82372492,0.00016435,2]
[329602026,1718495442245,-33261.0297478,0.00016435,2]
[329602027,1718495442268,-9091.85928713,0.00016436,2]
[329602028,1718495442279,-8847.50782748,0.00016436,2]
[329602029,1718495442290,-309.79014398,0.00016436,2]
[329602030,1718495442303,-166.51601448,0.00016436,2]
[329602031,1718495442313,-190.05330554,0.00016436,2]
[329602032,1718495442323,-1342.97936406,0.00016436,2]
[329602033,1718495442333,-217.18829622,0.00016436,2]
[329602034,1718495442364,-183.89541355,0.00016436,2]
[329602035,1718495442398,-500.0,0.00016438,2]
[329602036,1718495442436,-500.0,0.00016438,2]
[329602037,1718495442462,-500.0,0.00016438,2]
[329602038,1718495442478,-500.0,0.00016438,2]
[329602039,1718495442490,-500.0,0.00016438,2]
[329602040,1718495442536,-500.0,0.00016438,2]
[329602041,1718495442560,-500.0,0.00016438,2]
[329602042,1718495442579,-500.0,0.00016438,2]
[329602043,1718495442600,-1070.84,0.00016438,2]
[329602044,1718495442624,-500.0,0.00016438,2]
[329602045,1718495442638,-500.0,0.00016438,2]
[329602046,1718495442672,-500.0,0.00016438,2]
[329602047,1718495442692,-151.0,0.00016438,2]
[329602048,1718495442718,-151.0,0.00016438,2]
[329602049,1718495442729,-151.0,0.00016438,2]
[329602050,1718495442741,-151.0,0.00016438,2]
[329602051,1718495442770,-500.0,0.00016438,2]
[329602052,1718495442785,-151.0,0.00016438,2]
[329602053,1718495442803,-456.50360875,0.00016438,2]
[329602054,1718495442818,-500.0,0.00016438,2]
[329602055,1718495442864,-500.0,0.00016438,2]
[329602056,1718495442932,-500.0,0.00016438,2]
[329602057,1718495442969,-500.0,0.00016438,2]
[329602058,1718495443010,-500.0,0.00016438,2]
[329602059,1718495443034,-500.0,0.00016438,2]
[329602060,1718495443080,-500.0,0.00016438,2]
[329602061,1718495443104,-742.49,0.00016438,2]
[329602062,1718495443128,-500.0,0.00016438,2]
[329602063,1718495443158,-500.0,0.00016438,2]
[329602064,1718495443208,-367.91350064,0.00016438,2]
[329602065,1718495443261,-1802.29,0.00016438,2]
[329602066,1718495443277,-685.14,0.00016438,2]
[329602067,1718495443291,-500.0,0.00016438,2]
[329602068,1718495443376,-1248.05,0.00016438,2]
[329602069,1718495443398,-500.0,0.00016438,2]
[329602070,1718495443433,-511.68499252,0.00016438,2]
[329602071,1718495443457,-500.0,0.00016438,2]
[329602072,1718495443484,-500.0,0.00016438,2]
[329602073,1718495443547,-2233.29,0.00016438,2]
[329602074,1718495443598,-721.53,0.00016438,2]
[329602075,1718495443637,-500.0,0.00016438,2]
[329602076,1718495443680,-2187.71,0.00016438,2]
[329602077,1718495443692,-500.0,0.00016438,2]
[329602078,1718495443718,-814.79,0.00016438,2]
[329602079,1718495443753,-505.95545993,0.00016438,2]
[329602080,1718495443785,-500.0,0.00016438,2]
[329602081,1718495443800,-921.6,0.00016438,2]
[329602082,1718495443841,-500.0,0.00016438,2]
[329602083,1718495443900,-500.0,0.00016438,2]
[329602084,1718495443979,-500.0,0.00016438,2]
[329602085,1718495444004,-500.0,0.00016438,2]
[329602086,1718495444078,-500.0,0.00016438,2]
[329602087,1718495444116,-500.0,0.00016438,2]
[329602088,1718495444164,-500.0,0.00016438,2]
[329602089,1718495444195,-484.40192052,0.00016438,2]
[329602090,1718495444209,-500.0,0.00016438,2]
[329602091,1718495444233,-500.0,0.00016438,2]
[329602092,1718495444261,-503.76418704,0.00016438,2]
[329602093,1718495444272,-500.0,0.00016438,2]
[329602094,1718495444296,-1451.34,0.00016438,2]
[329602095,1718495444325,-563.89349169,0.00016438,2]
[329602096,1718495444353,-1000.0,0.00016438,2]
[329602097,1718495444403,-1000.0,0.00016438,2]
[329602098,1718495444441,-1000.0,0.00016438,2]
[329602099,1718495444464,-500.0,0.00016438,2]
[329602100,1718495444484,-1000.0,0.00016438,2]
[329602101,1718495444537,-1000.0,0.00016438,2]
[329602102,1718495444624,-1000.0,0.00016438,2]
[329602103,1718495444638,-1000.0,0.00016438,2]
[329602104,1718495444649,-1000.0,0.00016438,2]
[329602105,1718495444724,-1000.0,0.00016438,2]
[329602106,1718495444737,-2109.45,0.00016438,2]
[329602107,1718495444785,-1000.0,0.00016438,2]
[329602108,1718495444825,-1000.0,0.00016438,2]
[329602109,1718495444856,-1000.0,0.00016438,2]
[329602110,1718495444875,-1000.0,0.00016438,2]
[329602111,1718495444927,-1000.0,0.00016438,2]
[329602112,1718495444953,-1000.0,0.00016438,2]
[329602113,1718495445002,-1000.0,0.00016438,2]
[329602114,1718495445044,-1000.0,0.00016438,2]
[329602117,1718495445089,-1000.0,0.00016438,2]
[329602118,1718495445142,-1000.0,0.00016438,2]
[329602119,1718495445186,-1000.0,0.00016438,2]
[329602120,1718495445256,-1000.0,0.00016438,2]
[329602121,1718495445309,-1000.0,0.00016438,2]
[329602122,1718495445337,-1000.0,0.00016438,2]
[329602123,1718495445436,-1000.0,0.00016438,2]
[329602124,1718495445476,-1000.0,0.00016438,2]